fUST/lending_fUST_20250618
["ID","MTS","AMOUNT","RATE_DAILY","PERIOD"]
[366309345,1750181446930,-500.0,0.00022096,2]
[366309347,1750181446939,-500.0,0.00022096,2]
[366309349,1750181446949,-500.0,0.00022096,2]
[366309351,1750181446958,-500.0,0.00022096,2]
[366309353,1750181446968,-231.03049102,0.00022096,2]
[366309355,1750181446977,-371.4029022,0.00022096,2]
[366309357,1750181446986,-500.0,0.00022096,2]
[366309359,1750181446995,-500.0,0.00022096,2]
[366309361,1750181447004,-15.41789689,0.00023905,6]
[366309363,1750181447014,-2801.25434869,0.00023934,2]
[366309365,1750181447023,-168.0,0.00023939,2]
[366309367,1750181447033,-800.0,0.00023953,2]
[366309369,1750181447043,-7620.39078176,0.00023958,2]
[366309371,1750181447052,-151.0,0.00023958,7]
[366309373,1750181447062,-868.4,0.00023959,6]
[366309375,1750181447071,-897.15,0.00023959,6]
[366309377,1750181447081,-5618.76,0.00023959,6]
[366309379,1750181447092,-714.47,0.00023959,6]
[366309381,1750181447102,-5885.19,0.00023959,6]
[366309383,1750181447111,-4122.58,0.00023959,6]
[366309385,1750181447121,-2085.28,0.00023959,6]
[366309387,1750181447129,-900.43,0.0002396,6]
[366309389,1750181447146,-513.28,0.0002396,6]
[366309391,1750181447156,-545.85,0.0002396,6]
[366309393,1750181447165,-1592.52,0.0002396,6]
[366309395,1750181447175,-1340.19,0.0002396,6]
[366309397,1750181447184,-690.13,0.0002396,6]
[366309399,1750181447194,-1180.56,0.0002396,6]
[366309401,1750181447204,-3890.21,0.0002396,6]
[366309402,1750181447214,-701.44,0.0002396,6]
[366309404,1750181447226,-305.86945585,0.0002396,6]
[366309407,1750181447236,-849.9,0.0002396,6]
[366309409,1750181447246,-7110.61,0.0002396,6]
[366309411,1750181447255,-460.0,0.0002396,6]
[366309412,1750181447266,-888.45,0.0002396,6]
[366309414,1750181447275,-6024.99,0.0002396,6]
[366309416,1750181447285,-968.0,0.0002396,6]
[366309418,1750181447295,-460.0,0.0002396,6]
[366309420,1750181447305,-7162.32,0.0002396,6]
[366309422,1750181447314,-3954.93,0.0002396,6]
[366309424,1750181447324,-460.0,0.0002396,6]
[366309426,1750181447333,-875.38,0.0002396,6]
[366309428,1750181447343,-2904.42,0.0002396,6]
[366309430,1750181447352,-697.41,0.0002396,6]
[366309432,1750181447361,-5792.95,0.0002396,6]
[366309434,1750181447372,-3427.2,0.0002396,6]
[366309436,1750181447381,-1235.37,0.0002396,6]
[366309438,1750181447395,-1365.98,0.0002396,6]
[366309440,1750181447404,-3136.65,0.0002396,6]
[366309442,1750181447414,-460.0,0.0002396,6]
[366309444,1750181447423,-1635.42,0.0002396,6]
[366309447,1750181447433,-2046.65,0.0002396,6]
[366309449,1750181447443,-1356.27,0.0002396,6]
[366309451,1750181447453,-442.62766673,0.00023965,2]
[366309452,1750181447462,-515.49,0.00023972,6]
[366309455,1750181447471,-800.0,0.00023982,2]
[366309456,1750181447481,-315.31,0.00024,2]
[366309458,1750181447490,-153.0,0.00024,2]
[366309460,1750181447499,-6788.0,0.00024,2]
[366309462,1750181447509,-151.0,0.00024,9]
[366309464,1750181447518,-229.94211981,0.00024,7]
[366309467,1750181447531,-16988.18273863,0.00024,2]
[366309469,1750181447547,-772.23959303,0.00024046,2]
[366309472,1750181447562,-868.4,0.00024069,6]
[366309474,1750181447576,-897.15,0.00024069,6]
[366309477,1750181447589,-5618.76,0.00024069,6]
[366309479,1750181447603,-714.47,0.00024069,6]
[366309482,1750181447618,-5885.19,0.00024069,6]
[366309484,1750181447632,-4122.58,0.00024069,6]
[366309487,1750181447646,-2085.28,0.00024069,6]
[366309489,1750181447660,-900.43,0.0002407,6]
[366309492,1750181447674,-513.28,0.0002407,6]
[366309494,1750181447687,-545.85,0.0002407,6]
[366309497,1750181447701,-1592.52,0.0002407,6]
[366309499,1750181447713,-1340.19,0.0002407,6]
[366309501,1750181447726,-690.13,0.0002407,6]
[366309504,1750181447739,-1180.56,0.0002407,6]
[366309506,1750181447752,-3890.21,0.0002407,6]
[366309508,1750181447764,-701.44,0.0002407,6]
[366309510,1750181447776,-849.9,0.0002407,6]
[366309513,1750181447788,-7110.61,0.0002407,6]
[366309515,1750181447801,-460.0,0.0002407,6]
[366309518,1750181447815,-888.45,0.0002407,6]
[366309520,1750181447829,-6024.99,0.0002407,6]
[366309523,1750181447843,-968.0,0.0002407,6]
[366309525,1750181447860,-7162.32,0.0002407,6]
[366309528,1750181447872,-460.0,0.0002407,6]
[366309530,1750181447883,-3954.93,0.0002407,6]
[366309532,1750181447897,-460.0,0.0002407,6]
[366309534,1750181447910,-875.38,0.0002407,6]
[366309537,1750181447924,-2904.42,0.0002407,6]
[366309539,1750181447938,-697.41,0.0002407,6]
[366309541,1750181447948,-5792.95,0.0002407,6]
[366309543,1750181447961,-3427.2,0.0002407,6]
[366309546,1750181447973,-1235.37,0.0002407,6]
[366309548,1750181447986,-1365.98,0.0002407,6]
[366309550,1750181447997,-3136.65,0.0002407,6]
[366309552,1750181448008,-460.0,0.0002407,6]
[366309554,1750181448019,-1635.42,0.0002407,6]
[366309557,1750181448031,-2046.65,0.0002407,6]
[366309559,1750181448042,-1356.27,0.0002407,6]
[366309561,1750181448057,-515.49,0.00024081,6]
[366309564,1750181448068,-153.0,0.00024092,2]
[366309566,1750181448080,-153.0,0.00024092,2]
[366309568,1750181448092,-153.0,0.00024093,2]
[366309570,1750181448104,-153.0,0.00024093,2]
[366309572,1750181448115,-153.0,0.00024093,2]
[366309574,1750181448127,-153.0,0.00024093,2]
[366309577,1750181448141,-153.0,0.00024093,2]
[366309579,1750181448153,-151.0,0.00024093,7]
[366309581,1750181448164,-151.0,0.00024093,7]
[366309583,1750181448176,-153.0,0.00024093,2]
[366309586,1750181448188,-153.0,0.00024093,2]
[366309588,1750181448200,-153.0,0.00024093,2]
[366309590,1750181448212,-500.0,0.00024099,6]
[366309592,1750181448230,-3771.0,0.000241,2]
[366309595,1750181448243,-3771.0,0.000241,2]
[366309597,1750181448256,-3771.0,0.000241,2]
[366309599,1750181448267,-3771.0,0.000241,2]
[366309601,1750181448281,-3771.0,0.000241,2]
[366309603,1750181448293,-3771.0,0.000241,2]
[366309606,1750181448307,-3771.0,0.000241,2]
[366309608,1750181448319,-3771.0,0.000241,2]
[366309610,1750181448331,-3771.0,0.000241,2]
[366309612,1750181448344,-3771.0,0.000241,2]
[366309615,1750181448356,-2801.25434869,0.00024101,2]
[366309617,1750181448368,-460.0,0.00024107,6]
[366309619,1750181448380,-602.42089824,0.00024107,6]
[366309621,1750181448395,-460.0,0.00024107,6]
[366309624,1750181448407,-460.0,0.00024107,6]
[366309626,1750181448419,-460.0,0.00024107,6]
[366309628,1750181448431,-460.0,0.00024107,6]
[366309630,1750181448443,-460.0,0.00024107,6]
[366309633,1750181448456,-431.05019905,0.00024107,6]
[366309635,1750181448468,-162.41259368,0.00024107,6]
[366309637,1750181448480,-460.0,0.00024107,6]
[366309639,1750181448492,-460.0,0.00024107,6]
[366309642,1750181448504,-460.0,0.00024107,6]
[366309644,1750181448515,-460.0,0.00024107,6]
[366309646,1750181448528,-460.0,0.00024107,6]
[366309648,1750181448539,-119.46726393,0.00024107,6]
[366309665,1750181448692,-340.53273607,0.00024107,6]
[366309667,1750181448702,-460.0,0.00024107,6]
[366309695,1750181448949,-460.0,0.00024107,6]
[366309698,1750181448971,-460.0,0.00024107,6]
[366309700,1750181448984,-460.0,0.00024107,6]
[366309702,1750181448993,-460.0,0.00024107,6]
[366309704,1750181449003,-460.0,0.00024107,6]
[366309706,1750181449012,-430.0,0.00024107,6]
[366309708,1750181449022,-460.0,0.00024107,6]
[366309710,1750181449031,-460.0,0.00024107,6]
[366309712,1750181449040,-460.0,0.00024107,6]
[366309714,1750181449050,-460.0,0.00024107,6]
[366309716,1750181449059,-460.0,0.00024107,6]
[366309718,1750181449069,-460.0,0.00024107,6]
[366309720,1750181449078,-500.0,0.00024107,6]
[366309722,1750181449087,-182.16079871,0.00024107,6]
[366309724,1750181449096,-191.27292411,0.00024107,6]
[366309726,1750181449105,-460.0,0.00024107,6]
[366309728,1750181449115,-460.0,0.00024107,6]
[366309730,1750181449124,-460.0,0.00024107,6]
[366309732,1750181449135,-460.0,0.00024107,6]
[366309734,1750181449145,-542.42211343,0.00024107,6]
[366309736,1750181449155,-460.0,0.00024107,6]
[366309738,1750181449165,-493.29,0.00024107,6]
[366309740,1750181449175,-460.0,0.00024107,6]
[366309742,1750181449184,-460.0,0.00024107,6]
[366309744,1750181449195,-460.0,0.00024107,6]
[366309746,1750181449205,-460.0,0.00024107,6]
[366309748,1750181449216,-1298.77,0.00024107,6]
[366309750,1750181449228,-460.0,0.00024107,6]
[366309752,1750181449239,-460.0,0.00024107,6]
[366309754,1750181449248,-460.0,0.00024107,6]
[366309756,1750181449259,-930.98,0.00024107,6]
[366309758,1750181449269,-460.0,0.00024107,6]
[366309760,1750181449280,-1582.24,0.00024107,6]
[366309762,1750181449293,-460.0,0.00024107,6]
[366309764,1750181449303,-460.0,0.00024107,6]
[366309766,1750181449313,-460.0,0.00024107,6]
[366309768,1750181449323,-997.99,0.00024107,6]
[366309770,1750181449333,-431.00901855,0.00024107,6]
[366309772,1750181449343,-460.0,0.00024107,6]
[366309774,1750181449352,-1377.82,0.00024107,6]
[366309776,1750181449363,-438.38266754,0.00024107,6]
[366309778,1750181449372,-416.97722116,0.00024107,6]
[366309780,1750181449383,-460.0,0.00024107,6]
[366309781,1750181449398,-201.77494392,0.00024107,6]
[366309784,1750181449407,-416.29435906,0.00024107,6]
[366309786,1750181449417,-1484.18,0.00024107,6]
[366309787,1750181449427,-460.0,0.00024107,6]
[366309789,1750181449437,-431.91988334,0.00024107,6]
[366309791,1750181449447,-432.13598396,0.00024107,6]
[366309793,1750181449457,-460.0,0.00024107,6]
[366309795,1750181449467,-840.25,0.00024107,6]
[366309797,1750181449477,-432.06933431,0.00024107,6]
[366309799,1750181449487,-460.0,0.00024107,6]
[366309801,1750181449497,-460.0,0.00024107,6]
[366309803,1750181449506,-460.0,0.00024107,6]
[366309805,1750181449516,-460.0,0.00024107,6]
[366309807,1750181449525,-460.0,0.00024107,6]
[366309809,1750181449535,-410.31551418,0.00024107,6]
[366309811,1750181449544,-460.0,0.00024107,6]
[366309813,1750181449554,-460.0,0.00024107,6]
[366309815,1750181449565,-460.0,0.00024107,6]
[366309817,1750181449575,-460.0,0.00024107,6]
[366309819,1750181449586,-460.0,0.00024107,6]
[366309821,1750181449595,-432.28156503,0.00024107,6]
[366309822,1750181449604,-460.0,0.00024107,6]
[366309823,1750181449613,-460.0,0.00024107,6]
[366309824,1750181449623,-432.0073705,0.00024107,6]
[366309825,1750181449632,-580.75,0.00024107,6]
[366309826,1750181449643,-460.0,0.00024107,6]
[366309827,1750181449653,-460.0,0.00024107,6]
[366309828,1750181449662,-420.0,0.00024107,6]
[366309829,1750181449672,-1229.8,0.00024107,6]
[366309830,1750181449681,-263.80068983,0.00024107,6]
[366309831,1750181449690,-460.0,0.00024107,6]
[366309832,1750181449699,-460.0,0.00024107,6]
[366309833,1750181449708,-375.14548321,0.00024107,6]
[366309834,1750181449717,-460.0,0.00024107,6]
[366309835,1750181449726,-500.0,0.00024107,6]
[366309836,1750181449736,-460.0,0.00024107,6]
[366309837,1750181449745,-460.0,0.00024107,6]
[366309838,1750181449755,-410.0,0.00024107,6]
[366309839,1750181449764,-460.0,0.00024107,6]
[366309840,1750181449773,-460.0,0.00024107,6]
[366309841,1750181449782,-500.0,0.00024107,2]
[366309842,1750181449792,-500.0,0.00024107,6]
[366309843,1750181449801,-717.84,0.00024107,6]
[366309844,1750181449811,-460.0,0.00024107,6]
[366309845,1750181449821,-334.96244374,0.00024107,6]
[366309846,1750181449830,-460.0,0.00024107,6]
[366309847,1750181449839,-460.0,0.00024107,6]
[366309848,1750181449848,-1090.07,0.00024107,6]
[366309849,1750181449858,-496.41,0.00024107,6]
[366309851,1750181449868,-460.0,0.00024107,6]
[366309853,1750181449877,-951.4,0.00024107,6]
[366309855,1750181449887,-1160.36,0.00024107,6]
[366309856,1750181449896,-460.0,0.00024107,6]
[366309858,1750181449906,-460.0,0.00024107,6]
[366309860,1750181449916,-564.36,0.00024107,6]
[366309863,1750181449926,-440.0,0.00024107,6]
[366309864,1750181449935,-460.0,0.00024107,6]
[366309866,1750181449945,-475.98,0.00024107,6]
[366309868,1750181449954,-420.31015506,0.00024107,6]
[366309870,1750181449964,-795.24,0.00024107,6]
[366309872,1750181449974,-460.0,0.00024107,6]
[366309874,1750181449983,-460.0,0.00024107,6]
[366309876,1750181449993,-460.0,0.00024107,6]
[366309878,1750181450002,-460.0,0.00024107,6]
[366309880,1750181450012,-352.59168848,0.00024107,6]
[366309882,1750181450022,-460.0,0.00024107,6]
[366309884,1750181450031,-500.0,0.00024108,2]
[366309886,1750181450041,-460.0,0.00024108,6]
[366309888,1750181450050,-402.89091039,0.00024108,6]
[366309890,1750181450060,-460.0,0.00024108,6]
[366309892,1750181450069,-460.0,0.00024108,6]
[366309894,1750181450078,-460.0,0.00024108,6]
[366309896,1750181450087,-460.0,0.00024108,6]
[366309898,1750181450097,-460.0,0.00024108,6]
[366309900,1750181450107,-460.0,0.00024108,6]
[366309902,1750181450116,-460.0,0.00024108,6]
[366309904,1750181450126,-460.0,0.00024108,6]
[366309906,1750181450135,-430.0,0.00024108,6]
[366309908,1750181450145,-460.0,0.00024108,6]
[366309910,1750181450154,-460.0,0.00024108,6]
[366309912,1750181450164,-236.86817698,0.00024108,6]
[366309914,1750181450174,-279.16276251,0.00024108,6]
[366309916,1750181450184,-460.0,0.00024108,6]
[366309918,1750181450193,-460.0,0.00024108,6]
[366309920,1750181450202,-460.0,0.00024108,6]
[366309922,1750181450212,-460.0,0.00024108,6]
[366309924,1750181450223,-1000.0,0.00024108,30]
[366309926,1750181450233,-1000.0,0.00024108,30]
[366309928,1750181450241,-1000.0,0.00024108,30]
[366309930,1750181450250,-598.44199453,0.00024108,30]
[366309932,1750181450261,-460.0,0.00024108,6]
[366309934,1750181450271,-460.0,0.00024108,6]
[366309936,1750181450281,-460.0,0.00024108,2]
[366309938,1750181450291,-460.0,0.00024108,6]
[366309940,1750181450303,-430.0,0.00024108,6]
[366309942,1750181450312,-465.19838748,0.00024108,6]
[366309944,1750181450322,-451.79206832,0.00024108,6]
[366309946,1750181450331,-460.0,0.00024108,6]
[366309948,1750181450341,-460.0,0.00024108,6]
[366309950,1750181450351,-213.26540214,0.00024108,6]
[366309952,1750181450360,-460.0,0.00024108,6]
[366309954,1750181450370,-410.0,0.00024108,6]
[366309956,1750181450380,-460.0,0.00024108,6]
[366309958,1750181450391,-426.62652211,0.00024108,6]
[366309960,1750181450401,-460.0,0.00024108,6]
[366309962,1750181450411,-460.0,0.00024108,6]
[366309964,1750181450421,-460.0,0.00024108,6]
[366309966,1750181450429,-500.0,0.00024108,6]
[366309967,1750181450438,-500.0,0.00024108,6]
[366309970,1750181450449,-500.0,0.00024108,6]
[366309971,1750181450458,-500.0,0.00024108,6]
[366309973,1750181450468,-460.0,0.00024108,6]
[366309975,1750181450477,-348.61068991,0.00024108,6]
[366310362,1750181884309,381.530766,0.00013699,2]
[366310414,1750182631807,-4554.62075192,0.00019986,2]
[366310416,1750182631820,-445.37924808,0.00019986,2]
[366310418,1750182631829,-364.39267637,0.00020187,2]
[366310420,1750182631841,-17.13808963,0.00020187,2]
[366310423,1750182631851,-176.665105,0.0002072,2]
[366310424,1750182631861,-500.0,0.00020848,2]
[366310427,1750182631871,-500.0,0.00020848,2]
[366310428,1750182631881,-500.0,0.00020848,2]
[366310430,1750182631891,-288.1465802,0.00020848,2]
[366310432,1750182631900,-207.4,0.00020848,2]
[366310435,1750182631910,-183.303,0.0002086,2]
[366310436,1750182631919,-236.0,0.0002086,2]
[366310438,1750182631928,-300.0,0.0002086,2]
[366310440,1750182631938,-300.0,0.0002086,2]
[366310443,1750182631948,-677.09137892,0.00020861,2]
[366310445,1750182631961,-24222.90862108,0.00020861,2]
[366310447,1750182631970,-210.08064837,0.000209,4]
[366310449,1750182631980,-210.08064833,0.00021355,5]
[366310451,1750182631989,-160.0,0.0002169,2]
[366310453,1750182631999,-210.08064833,0.00021809,6]
[366310455,1750182632008,-500.0,0.00021915,2]
[366310457,1750182632018,-515.0,0.00021915,2]
[366310459,1750182632027,-500.0,0.00021915,2]
[366310461,1750182632036,-10093.2813744,0.00021916,2]
[366310463,1750182632046,-500.0,0.00021916,2]
[366310465,1750182632055,-617.10861055,0.00021916,2]
[366310467,1750182632065,-500.0,0.00021916,2]
[366310469,1750182632075,-500.0,0.00021916,2]
[366310471,1750182632084,-500.0,0.00021916,2]
[366310473,1750182632093,-500.0,0.00021916,2]
[366310475,1750182632103,-500.0,0.00021916,2]
[366310477,1750182632112,-500.0,0.00021916,2]
[366310479,1750182632121,-261.72134371,0.00021916,2]
[366310481,1750182632131,-500.0,0.00021916,2]
[366310483,1750182632140,-500.0,0.00021916,2]
[366310485,1750182632151,-500.0,0.00021916,2]
[366310487,1750182632160,-500.0,0.00021916,2]
[366310489,1750182632170,-195.0,0.00021916,2]
[366310491,1750182632179,-179.27975901,0.00021916,2]
[366310493,1750182632188,-460.0,0.00021917,6]
[366310495,1750182632198,-337.32748788,0.00021917,6]
[366310497,1750182632207,-446.41072766,0.00021917,6]
[366310499,1750182632216,-460.0,0.00021917,6]
[366310501,1750182632225,-460.0,0.00021917,6]
[366310503,1750182632235,-460.0,0.00021917,6]
[366310505,1750182632244,-303.18511126,0.00021917,6]
[366310507,1750182632253,-460.0,0.00021917,6]
[366310509,1750182632263,-430.0,0.00021917,6]
[366310510,1750182632272,-460.0,0.00021917,6]
[366310511,1750182632281,-433.86703452,0.00021917,6]
[366310513,1750182632290,-443.84815153,0.00021917,6]
[366310515,1750182632298,-460.0,0.00021917,6]
[366310517,1750182632307,-460.0,0.00021917,6]
[366310519,1750182632316,-460.0,0.00021917,6]
[366310521,1750182632326,-443.32240855,0.00021917,6]
[366310523,1750182632335,-460.0,0.00021917,6]
[366310524,1750182632345,-460.0,0.00021917,6]
[366310526,1750182632354,-300.0,0.00021917,6]
[366310528,1750182632364,-388.29155037,0.00021917,6]
[366310530,1750182632373,-460.0,0.00021917,6]
[366310532,1750182632383,-460.0,0.00021917,6]
[366310534,1750182632392,-229.01753291,0.00021917,6]
[366310536,1750182632401,-460.0,0.00021917,6]
[366310538,1750182632410,-460.0,0.00021917,6]
[366310559,1750182632601,-460.0,0.00021917,6]
[366310561,1750182632611,-460.0,0.00021917,6]
[366310563,1750182632626,-460.0,0.00021917,6]
[366310566,1750182632637,-525.36805981,0.00021917,6]
[366310568,1750182632646,-461.61508851,0.00021917,6]
[366310569,1750182632656,-460.0,0.00021917,6]
[366310571,1750182632666,-460.0,0.00021917,6]
[366310573,1750182632676,-460.0,0.00021917,6]
[366310576,1750182632685,-1065.35,0.00021917,6]
[366310578,1750182632696,-63.75126915,0.00021917,6]
[366310581,1750182632723,-500.0,0.00021915,2]
[366310583,1750182632733,-17.06899,0.00021915,2]
[366310585,1750182632750,-333.33273335,0.00021915,2]
[366310601,1750182637600,-2611.44256289,0.00021696,2]
[366310627,1750182637835,-2388.55743711,0.00021696,2]
[366310629,1750182637844,-149.59827665,0.00021915,2]
[366310631,1750182637853,-500.0,0.00021915,2]
[366310633,1750182637861,-500.0,0.00021915,2]
[366310635,1750182637870,-500.0,0.00021915,2]
[366310637,1750182637878,-500.0,0.00021915,2]
[366310639,1750182637889,-627.18035617,0.00021915,2]
[366310641,1750182637898,-500.0,0.00021915,2]
[366310643,1750182637907,-500.0,0.00021915,2]
[366310645,1750182637916,-500.0,0.00021915,2]
[366310647,1750182637926,-500.0,0.00021915,2]
[366310649,1750182637935,-500.0,0.00021915,2]
[366310651,1750182637944,-500.0,0.00021915,2]
[366310652,1750182637954,-500.0,0.00021915,2]
[366310655,1750182637963,-500.0,0.00021915,2]
[366310656,1750182637972,-500.0,0.00021915,2]
[366310658,1750182637981,-500.0,0.00021915,2]
[366310660,1750182637991,-500.0,0.00021915,2]
[366310662,1750182638000,-500.0,0.00021915,2]
[366310664,1750182638009,-500.0,0.00021915,2]
[366310666,1750182638018,-500.0,0.00021915,2]
[366310668,1750182638027,-500.0,0.00021915,2]
[366310670,1750182638036,-500.0,0.00021915,2]
[366310672,1750182638046,-500.0,0.00021915,2]
[366310674,1750182638055,-500.0,0.00021915,2]
[366310676,1750182638064,-500.0,0.00021915,2]
[366310678,1750182638073,-500.0,0.00021915,2]
[366310680,1750182638083,-500.0,0.00021915,2]
[366310682,1750182638093,-500.0,0.00021915,2]
[366310684,1750182638102,-396.24873085,0.00021917,6]
[366310686,1750182638111,-460.0,0.00021917,6]
[366310689,1750182638121,-460.0,0.00021917,6]
[366310690,1750182638131,-460.0,0.00021917,6]
[366310692,1750182638140,-460.0,0.00021917,6]
[366310694,1750182638150,-460.0,0.00021917,6]
[366310696,1750182638159,-460.0,0.00021917,6]
[366310698,1750182638169,-460.0,0.00021917,6]
[366310701,1750182638179,-460.0,0.00021917,6]
[366310703,1750182638188,-460.0,0.00021917,6]
[366310704,1750182638197,-460.0,0.00021917,6]
[366310706,1750182638206,-460.0,0.00021917,6]
[366310708,1750182638216,-460.0,0.00021917,6]
[366310710,1750182638225,-460.0,0.00021917,6]
[366310712,1750182638234,-460.0,0.00021917,6]
[366310714,1750182638243,-460.0,0.00021917,6]
[366310716,1750182638252,-460.0,0.00021917,6]
[366310718,1750182638262,-460.0,0.00021917,6]
[366310720,1750182638271,-460.0,0.00021917,6]
[366310722,1750182638281,-460.0,0.00021917,6]
[366310724,1750182638290,-460.0,0.00021917,6]
[366310726,1750182638300,-460.0,0.00021917,6]
[366310728,1750182638309,-460.0,0.00021917,6]
[366310730,1750182638319,-460.0,0.00021917,6]
[366310732,1750182638328,-427.01096742,0.00021917,6]
[366310734,1750182638337,-460.0,0.00021917,6]
[366310736,1750182638346,-460.0,0.00021917,6]
[366310738,1750182638356,-460.0,0.00021917,6]
[366310740,1750182638366,-460.0,0.00021917,6]
[366310742,1750182638388,-270.0,0.00021917,6]
[366310744,1750182638398,-460.0,0.00021917,6]
[366310746,1750182638407,-370.0,0.00021917,6]
[366310748,1750182638416,-460.0,0.00021917,6]
[366310750,1750182638426,-460.0,0.00021917,6]
[366310752,1750182638436,-460.0,0.00021917,6]
[366310754,1750182638445,-460.0,0.00021917,6]
[366310756,1750182638454,-460.0,0.00021917,6]
[366310758,1750182638464,-430.84595288,0.00021917,6]
[366310760,1750182638473,-430.0,0.00021917,6]
[366310762,1750182638483,-502.43,0.00021917,6]
[366310764,1750182638492,-460.93541062,0.00021917,6]
[366310766,1750182638502,-596.13,0.00021917,6]
[366310768,1750182638511,-460.0,0.00021917,6]
[366310770,1750182638521,-460.0,0.00021917,6]
[366310772,1750182638530,-460.0,0.00021917,6]
[366310774,1750182638540,-599.25474068,0.00021917,6]
[366310776,1750182638549,-460.0,0.00021917,6]
[366310778,1750182638558,-460.0,0.00021917,6]
[366310780,1750182638568,-460.0,0.00021917,6]
[366310782,1750182638577,-460.0,0.00021917,6]
[366310784,1750182638587,-430.0,0.00021917,6]
[366310786,1750182638596,-460.0,0.00021917,6]
[366310788,1750182638606,-460.0,0.00021917,6]
[366310790,1750182638616,-460.0,0.00021917,6]
[366310792,1750182638630,-460.0,0.00021917,6]
[366310794,1750182638643,-517.12,0.00021917,6]
[366310796,1750182638652,-460.0,0.00021917,6]
[366310798,1750182638663,-194.40239914,0.00021917,6]
[366310800,1750182638674,-460.0,0.00021917,6]
[366310802,1750182638683,-303.03831783,0.00021917,6]
[366310804,1750182638693,-460.0,0.00021917,6]
[366310806,1750182638704,-460.0,0.00021917,6]
[366310808,1750182638714,-460.0,0.00021917,6]
[366310810,1750182638724,-460.0,0.00021917,6]
[366310812,1750182638733,-432.32519125,0.00021917,6]
[366310814,1750182638743,-460.0,0.00021917,6]
[366310816,1750182638753,-460.0,0.00021917,6]
[366310818,1750182638762,-460.0,0.00021917,6]
[366310820,1750182638772,-460.0,0.00021917,6]
[366310822,1750182638781,-294.08747821,0.00021917,6]
[366310824,1750182638791,-460.0,0.00021917,6]
[366310826,1750182638800,-460.0,0.00021917,6]
[366310828,1750182638810,-460.0,0.00021917,6]
[366310830,1750182638819,-460.0,0.00021917,6]
[366310832,1750182638828,-460.0,0.00021917,6]
[366310834,1750182638837,-460.0,0.00021917,6]
[366310836,1750182638846,-460.0,0.00021917,6]
[366310838,1750182638855,-460.0,0.00021917,6]
[366310840,1750182638864,-460.0,0.00021917,6]
[366310842,1750182638874,-460.0,0.00021917,6]
[366310844,1750182638884,-263.93283531,0.00021917,6]
[366310845,1750182638893,-460.0,0.00021917,6]
[366310847,1750182638903,-382.19491668,0.00021917,6]
[366310849,1750182638913,-460.0,0.00021917,6]
[366310851,1750182638923,-500.0,0.00021917,6]
[366310853,1750182638933,-500.0,0.00021917,6]
[366310855,1750182638942,-500.0,0.00021917,6]
[366310857,1750182638952,-500.0,0.00021917,6]
[366310859,1750182638962,-401.10544024,0.00021917,6]
[366310861,1750182638971,-522.51,0.00021917,6]
[366310863,1750182638980,-460.0,0.00021917,6]
[366310865,1750182638990,-460.0,0.00021917,6]
[366310867,1750182639000,-460.0,0.00021917,6]